bitfinex-derivatives/quotes_BTCF0:USTF0_20250724
["timestamp","ask_amount","ask_price","bid_price","bid_amount"]
[1753366417198,2.15420047,117940.0,117930.0,0.00729171]
[1753366417596,1.53796047,117940.0,117930.0,0.00729171]
[1753366417792,0.2007193,117930.0,117920.0,0.2180517]
[1753366417994,1.37693729,117930.0,117920.0,0.04854]
[1753366418194,1.5033799,117930.0,117920.0,0.2180536]
[1753366418596,0.91046261,117930.0,117920.0,0.5392236]
[1753366418897,0.89246261,117930.0,117920.0,0.5392236]
[1753366419089,0.53266261,117930.0,117920.0,0.5392236]
[1753366419295,0.53266261,117930.0,117920.0,0.9710765]
[1753366419499,0.50144261,117930.0,117920.0,0.9710765]
[1753366419695,0.50144261,117930.0,117920.0,0.54765851]
[1753366420297,0.50144261,117930.0,117920.0,0.9710765]
[1753366420602,0.375,117930.0,117920.0,0.9710765]
[1753366421198,0.375,117930.0,117920.0,0.96264159]
[1753366421398,0.9052993,117930.0,117920.0,0.5392236]
[1753366421700,0.9052993,117930.0,117920.0,0.3658436]
[1753366421701,1.701061,117930.0,117920.0,0.3658436]
[1753366422000,0.2227336,117920.0,117910.0,0.4761963]
[1753366422297,0.38,117920.0,117910.0,1.04740429]
[1753366423408,0.381,117920.0,117910.0,1.04740429]
[1753366423600,0.383,117920.0,117910.0,1.04740429]
[1753366423994,0.383,117920.0,117910.0,0.9847863]
[1753366424193,0.383,117920.0,117910.0,1.40820429]
[1753366424801,0.383,117920.0,117910.0,1.04740429]
[1753366425397,0.383,117920.0,117910.0,0.6239863]
[1753366425604,0.383,117920.0,117910.0,1.20058459]
[1753366425805,0.47739,117920.0,117910.0,1.24296609]
[1753366425994,0.383,117920.0,117910.0,1.24296609]
[1753366427405,0.003,117920.0,117910.0,1.24296609]
[1753366427603,0.003,117920.0,117910.0,1.51415209]
[1753366427798,0.003,117920.0,117910.0,1.34453609]
[1753366428713,0.003,117920.0,117910.0,0.9211181]
[1753366428896,0.002,117920.0,117910.0,1.51415209]
[1753366429099,0.09439,117950.0,117940.0,0.5391949]
[1753366429304,0.6883166,117960.0,117950.0,0.5391805]
[1753366429509,0.82886,117960.0,117950.0,0.96259849]
[1753366429812,1.23906965,117960.0,117950.0,0.5391805]
[1753366430005,1.10083355,117960.0,117950.0,0.54760565]
[1753366430205,0.43709355,117960.0,117950.0,1.33182364]
[1753366430510,0.43709355,117960.0,117950.0,1.94814364]
[1753366430708,0.31,117960.0,117950.0,1.94814364]
[1753366431009,0.8019331,117990.0,117980.0,0.5391374]
[1753366431206,1.1419331,117990.0,117980.0,0.5391374]
[1753366431404,1.26848152,117990.0,117980.0,0.5391374]
[1753366431607,1.29970152,117990.0,117980.0,0.5391374]
[1753366431904,0.67459842,117990.0,117980.0,0.96255539]
[1753366432102,0.56093842,117990.0,117980.0,0.96255539]
[1753366432310,0.46754842,117990.0,117980.0,1.32335539]
[1753366432612,0.46754842,117990.0,117980.0,0.8999374]
[1753366433001,0.47154842,117990.0,117980.0,0.8999374]
[1753366433306,0.47154842,117990.0,117980.0,1.32335539]
[1753366433699,0.63252,118020.0,118010.0,0.14779]
[1753366434009,1.29941007,118020.0,118010.0,0.36971]
[1753366434205,1.29941007,118020.0,118010.0,0.98547]
[1753366434603,1.29941007,118020.0,118010.0,1.1548544]
[1753366434902,1.29941007,118020.0,118010.0,0.98547]
[1753366435508,1.30141007,118020.0,118010.0,0.37071]
[1753366435810,1.32341007,118020.0,118010.0,0.37071]
[1753366436004,1.74682806,118020.0,118010.0,0.66502]
[1753366436199,1.32341007,118020.0,118010.0,0.66502]
[1753366436406,1.30141007,118020.0,118010.0,1.0887544]
[1753366436604,1.13204007,118020.0,118010.0,1.0887544]
[1753366436800,1.13204007,118020.0,118010.0,1.51217239]
[1753366437003,0.99977007,118020.0,118010.0,1.51217239]
[1753366437203,0.86032007,118020.0,118010.0,1.51217239]
[1753366437399,1.03069007,118020.0,118010.0,0.96294239]
[1753366437606,1.19103007,118020.0,118010.0,1.1550043]
[1753366438009,1.25882047,118020.0,118010.0,1.1550043]
[1753366438321,1.23576246,118020.0,118010.0,1.0831944]
[1753366438518,1.04439246,118020.0,118010.0,1.57633239]
[1753366438719,1.03069007,118020.0,118010.0,1.57633239]
[1753366438910,1.05340021,118020.0,118010.0,1.57633239]
[1753366439108,1.05340021,118020.0,118010.0,1.1529144]
[1753366439407,2.4172482,118020.0,118010.0,0.05054]
[1753366439717,2.4172482,118020.0,118010.0,0.2199244]
[1753366440409,2.4172482,118020.0,117990.0,0.8749332]
[1753366440410,0.3976787,118000.0,117990.0,0.8749332]
[1753366440714,0.98374384,118000.0,117990.0,0.2593332]
[1753366440903,0.98374384,118000.0,117990.0,0.5126632]
[1753366441106,0.96174384,118000.0,117990.0,0.5779132]
[1753366441308,1.2998337,118000.0,117990.0,0.5779132]
[1753366441504,1.130435,118000.0,117990.0,0.5779132]
[1753366441711,0.466685,118000.0,117990.0,1.00133119]
[1753366441909,0.9390337,118000.0,117990.0,0.2117532]
[1753366442108,0.4723918,117970.0,117960.0,0.3271015]
[1753366442307,0.6497818,117970.0,117960.0,0.5177915]
[1753366442613,0.09667,117970.0,117960.0,1.30200949]
[1753366442813,0.16034,117980.0,117970.0,0.3907018]
[1753366443118,0.77291903,117980.0,117970.0,0.3907018]
[1753366443411,0.77291903,117980.0,117970.0,0.81411979]
[1753366443616,0.50682163,117980.0,117970.0,0.3907018]
[1753366443822,0.67624903,117980.0,117970.0,0.3907018]
[1753366444011,0.77291903,117980.0,117970.0,0.3907018]
[1753366444210,1.19738903,117980.0,117970.0,0.85762]
[1753366444713,1.19738903,117980.0,117970.0,1.0270618]
[1753366445215,0.94692903,117980.0,117970.0,1.1727218]
[1753366445409,0.77750163,117980.0,117970.0,1.1727218]
[1753366445812,0.50682163,117980.0,117970.0,1.1727218]
[1753366446018,0.67724903,117980.0,117970.0,1.59713979]
[1753366446213,0.77391903,117980.0,117970.0,1.1737218]
[1753366446514,0.98019903,117980.0,117970.0,1.1737218]
[1753366446811,1.34099903,117980.0,117970.0,1.1737218]
[1753366447013,1.14130163,117980.0,117970.0,1.60013979]
[1753366447313,0.87062163,117980.0,117970.0,1.60013979]
[1753366447610,0.13982163,117980.0,117970.0,1.96093979]
[1753366448015,0.013,117980.0,117970.0,1.96093979]
[1753366448207,0.013,117980.0,117970.0,2.13046778]
[1753366448611,0.3608,118010.0,118000.0,0.5355587]
[1753366448813,0.63148,118020.0,118010.0,0.5355444]
[1753366449010,0.71238545,118020.0,118010.0,0.81406239]
[1753366449211,0.81847218,118020.0,118010.0,0.81406239]
[1753366450109,0.6918,118020.0,118010.0,0.81506239]
[1753366450305,0.331,118020.0,118010.0,1.17586239]
[1753366450609,0.5301411,118050.0,118040.0,0.1693413]
[1753366450805,0.97839431,118050.0,118040.0,0.3906013]
[1753366451019,1.10564478,118050.0,118040.0,0.3906013]
[1753366451211,0.93630368,118050.0,118040.0,0.3906013]
[1753366451518,1.10563068,118050.0,118040.0,0.3906013]
[1753366452015,1.10563068,118050.0,118040.0,0.81401929]
[1753366452016,1.00896068,118050.0,118040.0,0.81401929]
[1753366452220,0.83963368,118050.0,118040.0,0.81401929]
[1753366452825,0.71238321,118050.0,118040.0,0.3906013]
[1753366453022,0.71238321,118050.0,118040.0,0.81401929]
[1753366453316,0.35158321,118050.0,118040.0,1.34424329]
[1753366453715,0.35558321,118050.0,118040.0,1.34524329]
[1753366453910,0.02558321,118050.0,118040.0,1.34524329]
[1753366454110,0.0450139,118070.0,118060.0,0.1693126]
[1753366454319,0.36,118070.0,118060.0,1.80975059]
[1753366454815,0.5292983,118070.0,118060.0,1.3863326]
[1753366455020,0.36,118070.0,118060.0,1.80975059]
[1753366455414,0.362,118070.0,118060.0,1.81075059]
[1753366456116,0.4100139,118070.0,118060.0,1.81175059]
[1753366457620,0.365,118070.0,118060.0,1.17679059]
[1753366457818,0.365,118070.0,118060.0,1.81011059]
[1753366458516,0.005,118070.0,118060.0,2.22951059]
[1753366458717,0.0001,118080.0,118070.0,0.3905583]
[1753366458916,0.0001,118080.0,118070.0,1.44721629]
[1753366458917,0.1901,118080.0,118070.0,1.44721629]
[1753366459112,0.1901,118080.0,118070.0,1.61660029]
[1753366460019,0.1901,118080.0,118070.0,1.61620029]
[1753366460218,0.1911,118080.0,118070.0,1.61620029]
[1753366460718,0.3608,118100.0,118090.0,0.3905296]
[1753366461019,0.7685253,118100.0,118090.0,1.44638759]
[1753366461223,0.8651953,118100.0,118090.0,1.44602759]
[1753366461431,0.59927,118100.0,118090.0,1.44602759]
[1753366462325,0.7685253,118100.0,118090.0,1.44602759]
[1753366462720,0.8651953,118100.0,118090.0,1.44602759]
[1753366462926,0.9288653,118100.0,118090.0,1.44526759]
[1753366463327,0.9288653,118100.0,118080.0,0.2115908]
[1753366463328,0.3780796,118090.0,118080.0,0.2115908]
[1753366463529,0.7380796,118090.0,118080.0,1.0163508]
[1753366463727,0.3780939,118080.0,118070.0,0.2116121]
[1753366464035,0.3781083,118070.0,118060.0,0.7936889]
[1753366464325,0.3781083,118070.0,118060.0,1.3770689]
[1753366464326,0.6881083,118070.0,118060.0,1.3770689]
[1753366464630,0.6881083,118070.0,118060.0,1.4246489]
[1753366465327,0.6881083,118070.0,118060.0,1.0638489]
[1753366465831,0.51881,118070.0,118060.0,1.0638489]
[1753366466017,0.6881083,118070.0,118060.0,1.0638489]
[1753366466220,0.5401445,118070.0,118060.0,1.0638489]
[1753366466421,0.51881,118070.0,118060.0,1.0638489]
[1753366466925,0.6981083,118070.0,118060.0,1.0631289]
[1753366467125,0.71943875,118070.0,118060.0,1.0641289]
[1753366467326,0.55014045,118070.0,118060.0,1.0641289]
[1753366467629,0.48747333,118070.0,118060.0,1.48854689]
[1753366468130,0.48747344,118070.0,118060.0,1.48854689]
[1753366468322,0.48747344,118070.0,118060.0,1.0651289]
[1753366468629,0.46614,118070.0,118060.0,1.48854689]
[1753366468930,0.46614,118070.0,118060.0,1.0651289]
[1753366469118,0.46614,118070.0,118060.0,1.48854689]
[1753366470227,0.49841,118070.0,118060.0,1.48854689]
[1753366470427,0.49841,118070.0,118060.0,1.0651289]
[1753366470628,0.041,118070.0,118060.0,1.84934689]
[1753366471129,0.041,118070.0,118060.0,1.48854689]
[1753366471333,0.041,118070.0,118060.0,2.01874689]
[1753366471833,0.001,118070.0,118060.0,2.01874689]
[1753366472033,0.001,118070.0,118060.0,2.37874689]
[1753366472235,0.14469,118090.0,118080.0,0.532504]
[1753366472536,0.18598,118090.0,118080.0,1.58408199]
[1753366472935,0.18598,118090.0,118080.0,1.94488199]
[1753366473133,0.38598,118090.0,118080.0,1.94488199]
[1753366473330,0.04598,118090.0,118080.0,1.58408199]
[1753366473534,0.17598,118090.0,118080.0,1.58408199]
[1753366473734,0.24281,118100.0,118090.0,0.5324897]
[1753366473935,0.56281,118100.0,118090.0,0.5324897]
[1753366474134,0.85962392,118100.0,118090.0,0.5324897]
[1753366474434,0.69036862,118100.0,118090.0,0.5324897]
[1753366474835,0.56281,118100.0,118090.0,0.95790769]
[1753366475037,0.56381,118100.0,118090.0,0.95990769]
[1753366475337,0.7330653,118100.0,118090.0,0.95990769]
[1753366475638,0.56381,118100.0,118090.0,0.95990769]
[1753366475831,0.39821,118100.0,118090.0,0.95990769]
[1753366477234,0.5674653,118100.0,118090.0,0.95790769]
[1753366477433,0.6661753,118100.0,118090.0,0.95990769]
[1753366477634,0.8453353,118100.0,118090.0,0.36722]
[1753366477850,1.2061353,118100.0,118090.0,0.05041]
[1753366478030,1.33249681,118100.0,118090.0,0.62844]
[1753366478234,1.7559148,118100.0,118090.0,0.62944]
[1753366478735,1.35283035,118100.0,118090.0,0.62944]
[1753366478936,1.33249681,118100.0,118090.0,0.62944]
[1753366479141,1.33249681,118100.0,118090.0,0.80056]
[1753366479735,1.33249681,118100.0,118090.0,0.63044]
[1753366479736,1.35283337,118100.0,118090.0,0.63044]
[1753366479936,1.33249681,118100.0,118090.0,0.63044]
[1753366480146,1.33249681,118100.0,118090.0,0.004]
[1753366480349,0.5243497,118090.0,118080.0,0.21753]
[1753366480643,0.524364,118080.0,118070.0,0.36322]
[1753366480844,0.884364,118080.0,118070.0,1.1581583]
[1753366481535,0.884364,118080.0,118070.0,0.4856883]
[1753366481735,0.884364,118080.0,118070.0,1.1112483]
[1753366482341,1.26551692,118080.0,118070.0,1.1112483]
[1753366483147,0.3160183,118070.0,118060.0,1.00990139]
[1753366483347,0.8943783,118070.0,118060.0,1.2427357]
[1753366483544,1.2551783,118070.0,118060.0,0.21753]
[1753366483752,1.40290155,118070.0,118060.0,0.8406427]
[1753366484045,1.38257895,118070.0,118060.0,0.8406427]
[1753366484249,1.40289935,118070.0,118060.0,1.1574527]
[1753366484444,1.40389935,118070.0,118060.0,1.1584527]
[1753366484846,1.40389935,118070.0,118060.0,0.5335327]
[1753366485852,1.40389935,118070.0,118060.0,0.4867027]
[1753366486844,1.40389935,118070.0,118060.0,0.31739]
[1753366487143,1.40389935,118070.0,118060.0,0.4867027]
[1753366487750,1.40389935,118070.0,118060.0,0.5335327]
[1753366490750,1.40389935,118070.0,118060.0,1.1596927]
[1753366493554,1.40389935,118070.0,118060.0,0.99038]
[1753366493756,1.40389935,118070.0,118060.0,1.1596927]
[1753366494857,1.40389935,118070.0,118060.0,1.1128627]
[1753366496155,1.40389935,118070.0,118060.0,1.1596927]
[1753366497652,1.04309935,118070.0,118060.0,1.1596927]
[1753366498058,0.12840065,118070.0,118060.0,1.94391069]
[1753366498246,0.07130863,118070.0,118060.0,1.94391069]
[1753366498560,0.61841725,118070.0,118060.0,1.91287069]
[1753366498755,0.58076885,118070.0,118060.0,1.91287069]
[1753366498959,0.56046,118070.0,118060.0,1.91287069]
[1753366499259,0.7297584,118070.0,118060.0,1.91287069]
[1753366499458,0.7297584,118070.0,118060.0,0.8632927]
[1753366499459,0.9058284,118070.0,118060.0,0.8632927]
[1753366499757,0.92613721,118070.0,118060.0,1.5203927]
[1753366500053,0.92613721,118070.0,118060.0,0.8961927]
[1753366500256,0.92613721,118070.0,118060.0,0.8353]
[1753366500257,1.83714382,118070.0,118060.0,0.8353]
[1753366500450,1.83714382,118070.0,118060.0,0.001]
[1753366500647,0.14477,118060.0,118040.0,0.6263033]
[1753366500862,0.94827509,118050.0,118040.0,1.4443985]
[1753366501052,0.3141114,118040.0,118030.0,0.5838217]
[1753366501253,0.3141114,118040.0,118020.0,1.1012193]
[1753366501254,0.3454258,118030.0,118020.0,1.1012193]
[1753366501565,1.1956858,118030.0,118010.0,0.4454871]
[1753366501856,0.5249001,118020.0,118010.0,1.4196187]
[1753366502047,0.9049001,118020.0,118010.0,1.4196187]
[1753366502248,0.73553,118020.0,118010.0,1.89161669]
[1753366502448,0.14709,118030.0,118020.0,0.5415101]
[1753366502655,0.14709,118030.0,118020.0,0.96492809]
[1753366502656,1.0172458,118030.0,118020.0,0.96492809]
[1753366502960,0.81553622,118030.0,118020.0,1.32572809]
[1753366503159,0.99160622,118030.0,118020.0,1.94912809]
[1753366503562,0.99160622,118030.0,118020.0,1.58832809]
[1753366503754,0.82225042,118030.0,118020.0,1.94912809]
[1753366504060,0.29672042,118030.0,118020.0,1.94912809]
[1753366504260,0.17,118030.0,118020.0,1.94912809]
[1753366504462,0.17,118030.0,118020.0,2.11858409]
[1753366504659,0.17,118030.0,118020.0,1.6951661]
[1753366504855,0.17,118030.0,118020.0,2.11858409]
[1753366506052,0.6930642,118060.0,118030.0,0.0423359]
[1753366506253,0.04781,118050.0,118040.0,1.4831712]
[1753366506452,0.30928,118060.0,118050.0,0.5208871]
[1753366506453,0.27437612,118060.0,118050.0,0.5208871]
[1753366506658,0.0678462,118060.0,118050.0,1.30510509]
[1753366506868,0.0678462,118060.0,118050.0,0.8816871]
[1753366507161,0.04781,118060.0,118050.0,1.30510509]
[1753366507868,0.05281,118060.0,118050.0,1.30610509]
[1753366508061,0.05581,118060.0,118050.0,1.30710509]
[1753366508456,0.36581,118060.0,118050.0,1.30710509]
[1753366508657,0.05581,118060.0,118050.0,1.30710509]
[1753366509063,0.8428427,118060.0,118050.0,1.90278509]
[1753366509266,0.25439,118060.0,118050.0,1.90278509]
[1753366509466,0.05581,118060.0,118050.0,1.93078509]
[1753366509863,0.05281,118060.0,118050.0,1.89688509]
[1753366510466,0.05281,118060.0,118050.0,1.89788509]
[1753366510663,0.2191227,118060.0,118050.0,1.89788509]
[1753366510863,0.3184027,118060.0,118050.0,1.89788509]
[1753366511058,0.14909,118060.0,118050.0,1.89788509]
[1753366511263,0.04981,118060.0,118050.0,1.89788509]
[1753366511470,0.002,118060.0,118050.0,2.32130308]
[1753366512870,0.09928,118080.0,118070.0,0.2021984]
[1753366513071,0.5216448,118100.0,118090.0,0.4928297]
[1753366513267,0.94950938,118100.0,118090.0,1.53920769]
[1753366513467,1.31030938,118100.0,118090.0,1.53920769]
[1753366513677,0.94950938,118100.0,118090.0,1.53920769]
[1753366513864,0.94951014,118100.0,118090.0,1.53920769]
[1753366514066,0.9294311,118100.0,118090.0,0.91624769]
[1753366514269,0.9294311,118100.0,118090.0,1.89992769]
[1753366514464,0.9304311,118100.0,118090.0,1.90192769]
[1753366514677,0.9304311,118100.0,118090.0,1.54112769]
[1753366514876,0.9304311,118100.0,118090.0,1.1197097]
[1753366515086,1.2912311,118100.0,118090.0,1.1195897]
[1753366515272,1.2912311,118100.0,118090.0,0.29466]
[1753366515487,1.41902733,118100.0,118090.0,0.62576]
[1753366515892,1.41902733,118100.0,118090.0,0.003]
[1753366515893,1.84244532,118100.0,118090.0,0.003]
[1753366516288,1.41902733,118100.0,118090.0,0.001]
[1753366517092,1.41902733,118100.0,118090.0,0.1702697]
[1753366517294,1.41902733,118100.0,118090.0,0.001]
[1753366517493,1.42102733,118100.0,118090.0,0.05011]
[1753366517688,1.42102733,118100.0,118090.0,0.4609297]
[1753366517893,1.42202733,118100.0,118090.0,0.88434769]
[1753366518094,1.42202733,118100.0,118090.0,0.91724769]
[1753366518294,1.31288733,118100.0,118090.0,0.94524769]
[1753366518495,1.01675733,118100.0,118090.0,0.94524769]
[1753366518796,1.01675733,118100.0,118090.0,0.91724769]
[1753366519092,0.95008733,118100.0,118090.0,0.94424769]
[1753366519297,0.95208733,118100.0,118090.0,0.94524769]
[1753366519498,0.95008733,118100.0,118090.0,0.94524769]
[1753366519791,0.95108733,118100.0,118090.0,0.94524769]
[1753366519993,0.78487733,118100.0,118090.0,0.94524769]
[1753366520697,1.01475733,118100.0,118090.0,0.4938297]
[1753366520894,1.01475733,118100.0,118090.0,0.91724769]
[1753366521197,1.01791103,118100.0,118090.0,0.91724769]
[1753366521386,1.33638163,118100.0,118090.0,1.54036769]
[1753366521586,0.80632623,118100.0,118090.0,0.91724769]
[1753366521889,0.80632623,118100.0,118090.0,1.53980769]
[1753366521890,0.97558163,118100.0,118090.0,1.53980769]
[1753366522289,1.33638163,118100.0,118090.0,1.53980769]
[1753366522489,1.33638163,118100.0,118090.0,0.001]
[1753366522890,0.524814,118080.0,118070.0,0.96801439]
[1753366523089,1.195614,118080.0,118070.0,0.811]
[1753366523295,0.79230848,118080.0,118070.0,1.33098639]
[1753366523496,0.79230848,118080.0,118070.0,1.89959639]
[1753366523796,0.48458848,118080.0,118070.0,1.92759639]
[1753366523996,0.01,118080.0,118070.0,1.92759639]
[1753366524196,0.04981,118100.0,118090.0,0.3718597]
[1753366524393,0.04981,118100.0,118090.0,0.79527769]
[1753366524692,0.172,118100.0,118090.0,1.41775769]
[1753366524894,0.21981,118100.0,118090.0,1.77855769]
[1753366525299,0.21981,118100.0,118090.0,1.41775769]
[1753366525597,0.21981,118100.0,118090.0,1.41763769]
[1753366526200,0.41981,118100.0,118090.0,1.15607769]
[1753366526404,0.51909,118100.0,118090.0,1.41739769]
[1753366526700,0.51709,118100.0,118090.0,1.41739769]
[1753366526898,0.41781,118100.0,118090.0,1.77819769]
[1753366527701,0.41781,118100.0,118090.0,1.41695769]
[1753366527899,0.41781,118100.0,118090.0,1.77775769]
[1753366528095,0.11781,118100.0,118090.0,1.41695769]
[1753366528403,0.24567,118100.0,118090.0,1.56237769]
[1753366528604,0.24667,118100.0,118090.0,1.56237769]
[1753366528805,0.62823,118100.0,118090.0,1.89505769]
[1753366528998,0.40253,118100.0,118090.0,1.56225769]
[1753366529194,0.12081,118100.0,118090.0,1.56225769]
[1753366529393,0.12081,118100.0,118090.0,0.94069769]
[1753366529601,0.41081,118100.0,118090.0,1.92269769]
[1753366530104,0.53667,118100.0,118090.0,1.56189769]
[1753366530301,0.24667,118100.0,118090.0,1.92269769]
[1753366530492,0.15253,118100.0,118090.0,1.92269769]
[1753366530695,0.12081,118100.0,118090.0,1.92269769]
[1753366530895,0.073,118100.0,118090.0,1.30149769]
[1753366531101,0.073,118100.0,118090.0,1.92269769]
[1753366531296,0.04726,118120.0,118110.0,0.0635]
[1753366531492,0.03,118120.0,118110.0,2.20652339]
[1753366531697,0.03,118120.0,118110.0,2.24883269]
[1753366531901,0.03,118120.0,118110.0,1.62791269]
[1753366532105,0.03,118120.0,118110.0,2.08613269]
[1753366532505,0.035,118120.0,118110.0,2.08713269]
[1753366532804,0.038,118120.0,118110.0,2.08713269]
[1753366533005,0.038,118120.0,118110.0,2.08697269]
[1753366534597,0.388,118120.0,118110.0,2.08697269]
[1753366534797,0.005,118120.0,118110.0,2.08797269]
[1753366534994,0.6973468,118120.0,118110.0,0.5982161]
[1753366535201,1.2376668,118120.0,118110.0,1.61359409]
[1753366535399,0.8768668,118120.0,118110.0,1.61359409]
[1753366535602,0.59601,118120.0,118110.0,1.64159409]
[1753366535799,0.52812,118120.0,118110.0,1.64159409]
[1753366536005,0.40226,118120.0,118110.0,1.64159409]
[1753366536500,0.8768668,118120.0,118110.0,0.5279082]
[1753366536705,1.3650326,118120.0,118110.0,0.2135482]
[1753366536906,1.3600326,118120.0,118110.0,0.1702412]
[1753366537095,1.3610326,118120.0,118110.0,0.1702412]
[1753366539010,1.3610326,118120.0,118110.0,0.76359919]
[1753366539503,1.3610326,118120.0,118110.0,0.3401812]
[1753366539700,1.3610326,118120.0,118110.0,0.4529712]
[1753366539901,1.3610326,118120.0,118110.0,0.90801919]
[1753366540309,0.5256258,118120.0,118110.0,1.55789919]
[1753366540509,0.5256258,118120.0,118110.0,1.91869919]
[1753366540705,0.351,118120.0,118110.0,1.91869919]
[1753366540910,0.081,118120.0,118110.0,1.91869919]
[1753366541203,0.321,118120.0,118110.0,1.91869919]
[1753366541406,0.001,118120.0,118110.0,1.91869919]
[1753366541709,0.081,118120.0,118110.0,1.91869919]
[1753366541905,0.081,118120.0,118110.0,2.08802718]
[1753366542112,0.40806,118140.0,118130.0,0.3136325]
[1753366542305,0.75806,118140.0,118130.0,1.56027049]
[1753366542910,0.8522,118140.0,118130.0,1.56027049]
[1753366543610,0.4914,118140.0,118130.0,1.56027049]
[1753366544016,0.52312,118140.0,118130.0,1.56027049]
[1753366544416,0.52412,118140.0,118130.0,1.56027049]
[1753366544716,0.39826,118140.0,118130.0,1.92107049]
[1753366545014,0.081,118140.0,118130.0,1.92107049]
[1753366545310,0.0551266,118140.0,118130.0,2.2395373]
[1753366545515,0.0571266,118140.0,118130.0,1.9305373]
[1753366545814,0.002,118140.0,118130.0,1.9305373]
[1753366546201,0.002,118140.0,118130.0,1.5697373]
[1753366546406,0.002,118140.0,118130.0,1.9305373]
[1753366549315,0.352,118140.0,118130.0,1.3052573]
[1753366549510,0.002,118140.0,118130.0,1.9297373]
[1753366550121,0.002,118140.0,118130.0,1.99803859]
[1753366550417,0.002,118140.0,118130.0,1.37355859]
[1753366550615,0.04926,118140.0,118130.0,1.63695859]
[1753366551220,0.002,118140.0,118130.0,1.37355859]
[1753366551517,0.002,118140.0,118130.0,1.99763859]
[1753366551918,0.04926,118140.0,118130.0,1.99763859]
[1753366552118,0.38926,118140.0,118130.0,1.99763859]
[1753366552513,0.64668,118140.0,118130.0,1.63659859]
[1753366552712,0.64668,118140.0,118130.0,1.17671379]
[1753366552713,1.2246382,118140.0,118130.0,1.17671379]
[1753366553023,1.2246382,118140.0,118130.0,1.0767025]
[1753366553520,1.77443276,118140.0,118130.0,0.1702125]
[1753366554215,2.39823276,118140.0,118130.0,0.1702125]
[1753366554521,1.97481477,118140.0,118130.0,0.1702125]
[1753366555017,2.56752876,118140.0,118130.0,0.1702125]
[1753366555416,1.97491257,118140.0,118130.0,0.1702125]
[1753366555620,1.97513477,118140.0,118130.0,0.1702125]
[1753366556522,1.80593657,118140.0,118130.0,0.81315049]
[1753366556720,1.80593657,118140.0,118130.0,0.90682049]
[1753366556721,1.18181657,118140.0,118130.0,0.90682049]
[1753366557825,0.82101657,118140.0,118130.0,0.90682049]
[1753366558422,1.18181657,118140.0,118130.0,0.90682049]
[1753366559422,0.82101657,118140.0,118130.0,0.90682049]
[1753366559822,1.35101477,118140.0,118130.0,0.90682049]
[1753366560119,1.79415832,118140.0,118130.0,0.001]
[1753366560420,1.96345432,118140.0,118130.0,0.001]
[1753366561326,1.54003633,118140.0,118130.0,0.001]
[1753366561523,2.17261652,118140.0,118110.0,0.2538508]
[1753366561722,2.17261652,118140.0,118110.0,0.2115406]
[1753366561723,1.2429569,118120.0,118110.0,0.2115406]
[1753366562023,1.56460043,118120.0,118110.0,0.1692316]
[1753366562214,0.3760312,118110.0,118100.0,0.2115633]
[1753366562420,1.0868312,118110.0,118100.0,0.2115633]
[1753366562619,1.8418892,118110.0,118100.0,0.2115633]
[1753366563427,0.3760455,118100.0,118090.0,0.2538901]
[1753366563724,1.0568455,118100.0,118090.0,0.2538901]
[1753366563929,1.0568455,118100.0,118090.0,0.84778809]
[1753366564722,0.6960455,118100.0,118090.0,0.84778809]
[1753366565023,1.0568455,118100.0,118090.0,0.84778809]
[1753366565228,1.0578455,118100.0,118090.0,0.95986809]
[1753366565428,0.8423855,118100.0,118090.0,0.95986809]
[1753366565828,0.8423855,118100.0,118090.0,0.98997809]
[1753366566227,0.3661,118100.0,118090.0,1.01797809]
[1753366566721,0.3661,118100.0,118090.0,1.01997809]
[1753366567616,0.49558,118100.0,118090.0,1.01997809]
[1753366569422,0.3661,118100.0,118090.0,1.01997809]
[1753366571428,0.3661,118100.0,118090.0,0.5965601]
[1753366571628,0.3661,118100.0,118090.0,1.01997809]
[1753366571828,0.3761,118100.0,118090.0,1.01997809]
[1753366575234,0.6433755,118100.0,118090.0,1.64461809]
[1753366575437,1.0993055,118100.0,118090.0,1.64461809]
[1753366575733,1.6492192,118100.0,118090.0,0.003]
[1753366576042,2.2736192,118100.0,118090.0,0.003]
[1753366576633,1.85020121,118100.0,118090.0,0.1722698]
[1753366577033,1.85020121,118100.0,118090.0,0.003]
[1753366577938,1.91830188,118100.0,118090.0,0.003]
[1753366578341,1.91830188,118100.0,118090.0,0.1722699]
[1753366579037,1.85020121,118100.0,118090.0,0.71618789]
[1753366579241,1.85020121,118100.0,118090.0,0.87724789]
[1753366579440,0.80962571,118100.0,118090.0,0.90735789]
[1753366579634,0.69759571,118100.0,118090.0,1.55907789]
[1753366579836,0.53405571,118100.0,118090.0,1.55907789]
[1753366580234,0.50259571,118100.0,118090.0,1.91987789]
[1753366580436,0.3761,118100.0,118090.0,1.91987789]
[1753366581236,0.331,118100.0,118090.0,1.91987789]
[1753366581436,0.001,118100.0,118090.0,1.91987789]
[1753366581643,0.311,118100.0,118090.0,2.08922989]
[1753366582140,0.341,118100.0,118090.0,2.08922989]
[1753366582538,0.341,118100.0,118090.0,1.98057944]
[1753366582742,0.3861,118100.0,118090.0,1.98057944]
[1753366583947,0.0461,118100.0,118090.0,1.98057944]
[1753366584140,0.001,118100.0,118090.0,1.98057944]
[1753366584341,0.0451,118120.0,118110.0,0.5089111]
[1753366584546,0.0451,118120.0,118110.0,1.91628909]
[1753366584547,0.06,118120.0,118110.0,1.91628909]
[1753366584849,0.0451,118130.0,118120.0,0.5088968]
[1753366585142,0.33,118130.0,118120.0,1.29311479]
[1753366585346,0.0451,118140.0,118130.0,0.5088825]
[1753366585538,0.3651,118140.0,118130.0,1.91626049]
[1753366585736,0.5342982,118140.0,118130.0,1.91626049]
[1753366586148,0.3651,118140.0,118130.0,1.91626049]
[1753366586447,0.5352982,118140.0,118130.0,1.91626049]
[1753366586740,0.3661,118140.0,118130.0,1.55546049]
[1753366586938,0.3661,118140.0,118130.0,1.91626049]
[1753366587140,0.3661,118140.0,118130.0,1.55546049]
[1753366587340,0.3661,118140.0,118130.0,1.91626049]
[1753366588549,0.5352982,118140.0,118130.0,1.91626049]
[1753366588746,0.5352982,118140.0,118130.0,1.29310049]
[1753366589053,0.8361582,118140.0,118130.0,1.88690049]
[1753366589251,1.1969582,118140.0,118130.0,1.0726525]
[1753366590346,1.1969582,118140.0,118130.0,0.90681049]
[1753366590748,0.66696,118140.0,118130.0,1.26761049]
[1753366590943,0.55533,118140.0,118130.0,1.29561049]
[1753366591143,0.3661,118140.0,118130.0,1.29561049]
[1753366591348,0.321,118140.0,118130.0,1.29561049]
[1753366591648,0.321,118140.0,118130.0,0.93481049]
[1753366592148,0.8966482,118140.0,118130.0,0.93481049]